[Event "Late-Titled-Tuesday-Blitz-September-05-2023"]
[Site "Chess.com"]
[Date "2023.09.05"]
[Round "8"]
[White "wild3000"]
[Black "maksimys18"]
[Result "1-0"]
[WhiteElo "2365"]
[BlackElo "2489"]
[TimeControl "180+1"]
[EndTime "15:29:46 PDT"]
[Termination "wild3000 won by checkmate"]

1. e4 {[%clk 0:03:00]} 1... e6 {[%clk 0:03:00.9]} 2. Nf3 {[%clk 0:02:58.5]} 2...
d5 {[%clk 0:03:01.5]} 3. e5 {[%clk 0:02:59]} 3... c5 {[%clk 0:03:01.4]} 4. b4
{[%clk 0:02:59]} 4... cxb4 {[%clk 0:03:00.9]} 5. d4 {[%clk 0:02:58.7]} 5... Nc6
{[%clk 0:03:01.5]} 6. a3 {[%clk 0:02:58.6]} 6... Nh6 {[%clk 0:03:00.9]} 7. axb4
{[%clk 0:02:56.4]} 7... Bxb4+ {[%clk 0:03:00.6]} 8. c3 {[%clk 0:02:56.6]} 8...
Bf8 {[%clk 0:03:00.8]} 9. Bd3 {[%clk 0:02:56.2]} 9... Nf5 {[%clk 0:02:59.7]} 10.
Na3 {[%clk 0:02:46.8]} 10... Be7 {[%clk 0:02:59.3]} 11. Nb5 {[%clk 0:02:33.8]}
11... O-O {[%clk 0:02:58.6]} 12. h4 {[%clk 0:02:27.8]} 12... a6 {[%clk
0:02:57.7]} 13. g4 {[%clk 0:02:14.2]} 13... Nxh4 {[%clk 0:02:54.1]} 14. Nxh4
{[%clk 0:02:13.2]} 14... Bxh4 {[%clk 0:02:54.3]} 15. Nd6 {[%clk 0:02:05.5]}
15... h6 {[%clk 0:02:51.6]} 16. Bc2 {[%clk 0:02:04.1]} 16... f5 {[%clk
0:02:49.1]} 17. gxf5 {[%clk 0:01:59.4]} 17... exf5 {[%clk 0:02:41.5]} 18. Qh5
{[%clk 0:01:56.8]} 18... Bg5 {[%clk 0:02:26.8]} 19. f4 {[%clk 0:01:49.9]} 19...
Be7 {[%clk 0:02:25.2]} 20. Ba3 {[%clk 0:01:38.9]} 20... b5 {[%clk 0:02:20.5]}
21. Rg1 {[%clk 0:01:33.6]} 21... Bxd6 {[%clk 0:01:36.7]} 22. Bxd6 {[%clk
0:01:32.7]} 22... Kh8 {[%clk 0:01:15.9]} 23. Bxf8 {[%clk 0:01:26.9]} 23... Qxf8
{[%clk 0:01:15.5]} 24. Rg6 {[%clk 0:01:20.3]} 24... Bd7 {[%clk 0:01:13.6]} 25.
Rd6 {[%clk 0:01:13.7]} 25... Ra7 {[%clk 0:01:06]} 26. Rxd5 {[%clk 0:01:04.7]}
26... b4 {[%clk 0:01:05.4]} 27. Rxd7 {[%clk 0:00:56.9]} 27... Rxd7 {[%clk
0:01:04.6]} 28. Qxf5 {[%clk 0:00:57.4]} 28... Qxf5 {[%clk 0:00:57.5]} 29. Bxf5
{[%clk 0:00:58.3]} 29... Rf7 {[%clk 0:00:55.3]} 30. Be4 {[%clk 0:00:57.9]} 30...
Ne7 {[%clk 0:00:44.1]} 31. Rxa6 {[%clk 0:00:47.8]} 31... g5 {[%clk 0:00:37.4]}
32. fxg5 {[%clk 0:00:45.6]} 32... hxg5 {[%clk 0:00:34.2]} 33. Rh6+ {[%clk
0:00:32.7]} 33... Kg8 {[%clk 0:00:32.3]} 34. Kd2 {[%clk 0:00:18.9]} 34... Rf4
{[%clk 0:00:27.8]} 35. Bb7 {[%clk 0:00:16.5]} 35... b3 {[%clk 0:00:24.3]} 36.
Rh1 {[%clk 0:00:15.1]} 36... Nf5 {[%clk 0:00:20.6]} 37. Rb1 {[%clk 0:00:14]}
37... Rf2+ {[%clk 0:00:19]} 38. Kd3 {[%clk 0:00:13.6]} 38... b2 {[%clk
0:00:19.4]} 39. Bd5+ {[%clk 0:00:12]} 39... Kf8 {[%clk 0:00:18.1]} 40. Ba2
{[%clk 0:00:11.2]} 40... g4 {[%clk 0:00:17.9]} 41. Ke4 {[%clk 0:00:10.7]} 41...
Ng3+ {[%clk 0:00:16.9]} 42. Kd5 {[%clk 0:00:10.2]} 42... Nh5 {[%clk 0:00:15.6]}
43. Kd6 {[%clk 0:00:09.9]} 43... g3 {[%clk 0:00:15.5]} 44. e6 {[%clk 0:00:10.2]}
44... Ng7 {[%clk 0:00:09.7]} 45. e7+ {[%clk 0:00:10]} 45... Ke8 {[%clk
0:00:09.7]} 46. d5 {[%clk 0:00:05.9]} 46... Nf5+ {[%clk 0:00:09.7]} 47. Ke5
{[%clk 0:00:06.1]} 47... Kxe7 {[%clk 0:00:08.9]} 48. c4 {[%clk 0:00:06]} 48...
g2 {[%clk 0:00:09]} 49. c5 {[%clk 0:00:06]} 49... Rf1 {[%clk 0:00:09.4]} 50. d6+
{[%clk 0:00:06.3]} 50... Kd8 {[%clk 0:00:09]} 51. c6 {[%clk 0:00:04.7]} 51...
Nxd6 {[%clk 0:00:07.2]} 52. Kxd6 {[%clk 0:00:04.7]} 52... g1=Q {[%clk 0:00:06]}
53. c7+ {[%clk 0:00:04.7]} 53... Ke8 {[%clk 0:00:04.4]} 54. c8=Q# {[%clk
0:00:04.7]} 1-0

[Event "Late-Titled-Tuesday-Blitz-September-05-2023"]
[Site "Chess.com"]
[Date "2023.09.05"]
[Round "8"]
[White "Kostukov_Alex"]
[Black "chessS1r"]
[Result "0-1"]
[WhiteElo "2401"]
[BlackElo "2577"]
[TimeControl "180+1"]
[EndTime "15:29:47 PDT"]
[Termination "chessS1r won by checkmate"]

1. g3 {[%clk 0:02:59]} 1... d5 {[%clk 0:02:57.4]} 2. Bg2 {[%clk 0:02:59.3]} 2...
e5 {[%clk 0:02:56.3]} 3. c4 {[%clk 0:02:58.5]} 3... dxc4 {[%clk 0:02:56]} 4.
Qa4+ {[%clk 0:02:57.6]} 4... Bd7 {[%clk 0:02:49.8]} 5. Qxc4 {[%clk 0:02:56.9]}
5... Bc6 {[%clk 0:02:50.5]} 6. Nf3 {[%clk 0:02:57]} 6... Nf6 {[%clk 0:02:48.7]}
7. Nxe5 {[%clk 0:02:56]} 7... Bd5 {[%clk 0:02:18.4]} 8. Bxd5 {[%clk 0:02:44.5]}
8... Qxd5 {[%clk 0:02:19.3]} 9. Qxd5 {[%clk 0:02:41.7]} 9... Nxd5 {[%clk
0:02:20.2]} 10. Nc3 {[%clk 0:02:40.3]} 10... Nb4 {[%clk 0:02:19.6]} 11. O-O
{[%clk 0:02:38.4]} 11... Bd6 {[%clk 0:02:17.6]} 12. Nc4 {[%clk 0:02:38.1]} 12...
Be7 {[%clk 0:02:10.8]} 13. b3 {[%clk 0:02:29.5]} 13... c6 {[%clk 0:02:05.7]} 14.
Bb2 {[%clk 0:02:28.5]} 14... O-O {[%clk 0:02:06.2]} 15. a3 {[%clk 0:02:25.9]}
15... N4a6 {[%clk 0:02:05.6]} 16. b4 {[%clk 0:02:24.5]} 16... Nc7 {[%clk
0:02:04.2]} 17. d3 {[%clk 0:02:13.2]} 17... Nd7 {[%clk 0:02:04.2]} 18. Na5
{[%clk 0:02:11.9]} 18... Rab8 {[%clk 0:01:59.8]} 19. Ne4 {[%clk 0:02:10.2]}
19... Nd5 {[%clk 0:01:54.5]} 20. Rac1 {[%clk 0:02:07.1]} 20... Rfe8 {[%clk
0:01:54.1]} 21. e3 {[%clk 0:02:05.1]} 21... Bf8 {[%clk 0:01:52.6]} 22. Rfd1
{[%clk 0:01:58.7]} 22... Ne5 {[%clk 0:01:50.5]} 23. Nc3 {[%clk 0:01:51.5]} 23...
Nb6 {[%clk 0:01:46.3]} 24. Kg2 {[%clk 0:01:47.4]} 24... Rbd8 {[%clk 0:01:45]}
25. Nxb7 {[%clk 0:01:40.3]} 25... Rxd3 {[%clk 0:01:43.9]} 26. Ne2 {[%clk
0:01:24.3]} 26... Rxd1 {[%clk 0:01:04.6]} 27. Rxd1 {[%clk 0:01:23.9]} 27... Nec4
{[%clk 0:01:05.3]} 28. Bc1 {[%clk 0:01:23.4]} 28... Rb8 {[%clk 0:01:03.7]} 29.
Nd8 {[%clk 0:01:17.3]} 29... Rc8 {[%clk 0:01:01.8]} 30. Nb7 {[%clk 0:01:07]}
30... Rb8 {[%clk 0:00:58.8]} 31. Nd8 {[%clk 0:00:57.5]} 31... Rc8 {[%clk
0:00:45.8]} 32. Nb7 {[%clk 0:00:34.5]} 32... f6 {[%clk 0:00:34.6]} 33. Nf4
{[%clk 0:00:31]} 33... Kf7 {[%clk 0:00:26.8]} 34. Nd3 {[%clk 0:00:24]} 34... Na4
{[%clk 0:00:12.9]} 35. Ndc5 {[%clk 0:00:19.5]} 35... Nxc5 {[%clk 0:00:12.1]} 36.
Nxc5 {[%clk 0:00:19]} 36... Bxc5 {[%clk 0:00:11.8]} 37. bxc5 {[%clk 0:00:19.4]}
37... Rc7 {[%clk 0:00:12.2]} 38. Rd4 {[%clk 0:00:18.5]} 38... Ne5 {[%clk
0:00:11.4]} 39. e4 {[%clk 0:00:17.6]} 39... Nd7 {[%clk 0:00:12]} 40. Bf4 {[%clk
0:00:16.3]} 40... Rb7 {[%clk 0:00:12.5]} 41. Rd6 {[%clk 0:00:16.1]} 41... Nxc5
{[%clk 0:00:13]} 42. Rxc6 {[%clk 0:00:16.4]} 42... Nxe4 {[%clk 0:00:13.4]} 43.
a4 {[%clk 0:00:14.7]} 43... g5 {[%clk 0:00:13]} 44. Be3 {[%clk 0:00:14.3]} 44...
Rd7 {[%clk 0:00:05.9]} 45. Ra6 {[%clk 0:00:12.7]} 45... Nc3 {[%clk 0:00:05]} 46.
a5 {[%clk 0:00:12.6]} 46... Nb5 {[%clk 0:00:04.8]} 47. Rc6 {[%clk 0:00:11.8]}
47... Ke7 {[%clk 0:00:04.3]} 48. h4 {[%clk 0:00:09.8]} 48... h6 {[%clk
0:00:04.1]} 49. h5 {[%clk 0:00:09.7]} 49... Kf7 {[%clk 0:00:04.1]} 50. Kf3
{[%clk 0:00:09.7]} 50... f5 {[%clk 0:00:03.8]} 51. g4 {[%clk 0:00:09.4]} 51...
fxg4+ {[%clk 0:00:03.5]} 52. Kxg4 {[%clk 0:00:09.2]} 52... Nd6 {[%clk
0:00:04.4]} 53. Bc5 {[%clk 0:00:07.9]} 53... Ne4 {[%clk 0:00:04.2]} 54. Be3
{[%clk 0:00:06]} 54... Nf6+ {[%clk 0:00:04.3]} 55. Kf5 {[%clk 0:00:03.1]} 55...
Rd5# {[%clk 0:00:02.6]} 0-1

[Event "Late-Titled-Tuesday-Blitz-September-05-2023"]
[Site "Chess.com"]
[Date "2023.09.05"]
[Round "8"]
[White "Aygehovit1992"]
[Black "mishanick"]
[Result "0-1"]
[WhiteElo "2723"]
[BlackElo "3063"]
[TimeControl "180+1"]
[EndTime "15:29:53 PDT"]
[Termination "mishanick won by resignation"]

1. e4 {[%clk 0:03:00.9]} 1... c5 {[%clk 0:02:59.5]} 2. Nc3 {[%clk 0:03:00.8]}
2... d6 {[%clk 0:03:00.1]} 3. f4 {[%clk 0:02:59]} 3... Nc6 {[%clk 0:02:59.7]} 4.
Nf3 {[%clk 0:02:59.5]} 4... g6 {[%clk 0:02:58.6]} 5. Bb5 {[%clk 0:02:59.8]} 5...
Bd7 {[%clk 0:02:59.2]} 6. Bxc6 {[%clk 0:02:59.5]} 6... Bxc6 {[%clk 0:03:00.1]}
7. d3 {[%clk 0:03:00.1]} 7... Bg7 {[%clk 0:02:58.4]} 8. O-O {[%clk 0:03:00.4]}
8... Nf6 {[%clk 0:02:59]} 9. Qe1 {[%clk 0:02:59.9]} 9... O-O {[%clk 0:02:59.5]}
10. Qh4 {[%clk 0:02:56.6]} 10... e6 {[%clk 0:02:59.6]} 11. f5 {[%clk 0:02:50.1]}
11... exf5 {[%clk 0:02:58.6]} 12. Bg5 {[%clk 0:02:40.1]} 12... h6 {[%clk
0:01:46.3]} 13. Bxh6 {[%clk 0:02:40]} 13... Nh7 {[%clk 0:01:45.6]} 14. Bxg7
{[%clk 0:02:23]} 14... Kxg7 {[%clk 0:01:38.9]} 15. exf5 {[%clk 0:02:20.7]} 15...
Qxh4 {[%clk 0:01:29.8]} 16. Nxh4 {[%clk 0:02:21.6]} 16... Ng5 {[%clk 0:01:30.1]}
17. f6+ {[%clk 0:01:33.6]} 17... Kh6 {[%clk 0:01:29.7]} 18. Rae1 {[%clk
0:01:10.8]} 18... Rae8 {[%clk 0:01:27.8]} 19. Kf2 {[%clk 0:00:57.9]} 19... Kh5
{[%clk 0:00:50.9]} 20. Nf3 {[%clk 0:00:45.9]} 20... Nxf3 {[%clk 0:00:49.9]} 21.
gxf3 {[%clk 0:00:46.8]} 21... Kg5 {[%clk 0:00:48]} 22. Ne4+ {[%clk 0:00:42]}
22... Bxe4 {[%clk 0:00:47.8]} 23. fxe4 {[%clk 0:00:40.2]} 23... Kxf6 {[%clk
0:00:47.9]} 24. Re3 {[%clk 0:00:33.3]} 24... Rh8 {[%clk 0:00:47.3]} 25. Rf3+
{[%clk 0:00:32.3]} 25... Kg7 {[%clk 0:00:48]} 26. Kg3 {[%clk 0:00:31.7]} 26...
Re7 {[%clk 0:00:48.6]} 27. h4 {[%clk 0:00:31.1]} 27... Rh5 {[%clk 0:00:48.5]}
28. c4 {[%clk 0:00:23.7]} 28... Rhe5 {[%clk 0:00:40.3]} 29. Rf6 {[%clk
0:00:21.3]} 29... R5e6 {[%clk 0:00:40.7]} 30. Rxe6 {[%clk 0:00:20.8]} 30... Rxe6
{[%clk 0:00:40.1]} 31. a3 {[%clk 0:00:21.2]} 31... b6 {[%clk 0:00:39.4]} 32. b4
{[%clk 0:00:21.2]} 32... Re5 {[%clk 0:00:38.4]} 33. Rb1 {[%clk 0:00:18.9]} 33...
Rh5 {[%clk 0:00:36.8]} 34. Kg4 {[%clk 0:00:11.8]} 34... Kf6 {[%clk 0:00:36.8]}
35. bxc5 {[%clk 0:00:05.3]} 35... dxc5 {[%clk 0:00:37.7]} 36. a4 {[%clk
0:00:04.7]} 36... Ke5 {[%clk 0:00:22]} 37. a5 {[%clk 0:00:05.2]} 37... Kd4
{[%clk 0:00:17]} 38. axb6 {[%clk 0:00:04.7]} 38... axb6 {[%clk 0:00:17.9]} 39.
Rxb6 {[%clk 0:00:05.1]} 39... Kxd3 {[%clk 0:00:18.4]} 40. Rb7 {[%clk 0:00:04.1]}
40... Rh7 {[%clk 0:00:19]} 41. e5 {[%clk 0:00:04.5]} 41... f5+ {[%clk
0:00:07.8]} 42. exf6 {[%clk 0:00:04.8]} 42... Rxb7 {[%clk 0:00:08.5]} 43. Kg5
{[%clk 0:00:05.7]} 43... Kxc4 {[%clk 0:00:09.2]} 44. Kxg6 {[%clk 0:00:05.9]}
44... Kd5 {[%clk 0:00:09.8]} 45. f7 {[%clk 0:00:06.5]} 45... Rb8 {[%clk
0:00:10]} 46. Kg7 {[%clk 0:00:06.2]} 46... c4 {[%clk 0:00:10.4]} 47. f8=Q {[%clk
0:00:06.7]} 47... Rxf8 {[%clk 0:00:10.4]} 48. Kxf8 {[%clk 0:00:07.6]} 48... c3
{[%clk 0:00:11.1]} 49. h5 {[%clk 0:00:08.1]} 49... c2 {[%clk 0:00:11.6]} 50. h6
{[%clk 0:00:08.7]} 50... c1=Q {[%clk 0:00:11.4]} 51. h7 {[%clk 0:00:09.4]} 51...
Qh6+ {[%clk 0:00:11.2]} 52. Kg8 {[%clk 0:00:09.7]} 52... Qg6+ {[%clk 0:00:11.6]}
53. Kh8 {[%clk 0:00:09.7]} 53... Qf6+ {[%clk 0:00:11.4]} 54. Kg8 {[%clk
0:00:10.2]} 54... Ke6 {[%clk 0:00:11]} 55. h8=N {[%clk 0:00:09]} 55... Ke7
{[%clk 0:00:10.3]} 56. Kh7 {[%clk 0:00:08.5]} 56... Qh4+ {[%clk 0:00:08.8]} 57.
Kg7 {[%clk 0:00:08.3]} 57... Qd4+ {[%clk 0:00:07.7]} 58. Kg8 {[%clk 0:00:08.5]}
58... Kf6 {[%clk 0:00:07.8]} 59. Nf7 {[%clk 0:00:07.9]} 59... Qg4+ {[%clk
0:00:08.1]} 60. Kf8 {[%clk 0:00:07.7]} 60... Qg7+ {[%clk 0:00:09]} 61. Ke8
{[%clk 0:00:07.5]} 61... Qxf7+ {[%clk 0:00:09.9]} 0-1

[Event "Late-Titled-Tuesday-Blitz-September-05-2023"]
[Site "Chess.com"]
[Date "2023.09.05"]
[Round "8"]
[White "InadaC"]
[Black "RebecaJimnz"]
[Result "1-0"]
[WhiteElo "2147"]
[BlackElo "2217"]
[TimeControl "180+1"]
[EndTime "15:29:58 PDT"]
[Termination "InadaC won on time"]

1. d4 {[%clk 0:03:00.9]} 1... d5 {[%clk 0:02:59.7]} 2. c4 {[%clk 0:02:54.5]}
2... c6 {[%clk 0:02:59.6]} 3. cxd5 {[%clk 0:02:54]} 3... cxd5 {[%clk 0:02:59.9]}
4. Bg5 {[%clk 0:02:53.9]} 4... Nf6 {[%clk 0:02:58.3]} 5. Bxf6 {[%clk 0:02:53.2]}
5... gxf6 {[%clk 0:02:57.2]} 6. e3 {[%clk 0:02:53.7]} 6... e6 {[%clk 0:02:57.2]}
7. Nc3 {[%clk 0:02:53.7]} 7... Nc6 {[%clk 0:02:57.4]} 8. Bb5 {[%clk 0:02:52.2]}
8... Bd7 {[%clk 0:02:52.2]} 9. Nge2 {[%clk 0:02:51.9]} 9... Rc8 {[%clk
0:02:52.3]} 10. Nf4 {[%clk 0:02:52.2]} 10... a6 {[%clk 0:02:50.9]} 11. Ba4
{[%clk 0:02:51.2]} 11... b5 {[%clk 0:02:49.5]} 12. Bc2 {[%clk 0:02:51.4]} 12...
b4 {[%clk 0:02:43.4]} 13. Nce2 {[%clk 0:02:49.7]} 13... Bd6 {[%clk 0:02:27.9]}
14. Qd3 {[%clk 0:02:17.6]} 14... Ne7 {[%clk 0:02:21.4]} 15. O-O {[%clk
0:02:11.5]} 15... Bb5 {[%clk 0:02:18.1]} 16. Qd2 {[%clk 0:02:09.6]} 16... e5
{[%clk 0:02:08.6]} 17. dxe5 {[%clk 0:02:01.8]} 17... fxe5 {[%clk 0:02:09.5]} 18.
Nh3 {[%clk 0:01:56]} 18... Qd7 {[%clk 0:01:48]} 19. Bb3 {[%clk 0:01:53.3]} 19...
Rg8 {[%clk 0:01:43.7]} 20. Ng3 {[%clk 0:01:53]} 20... Bxf1 {[%clk 0:01:34.9]}
21. Rxf1 {[%clk 0:01:50.7]} 21... Qc6 {[%clk 0:01:13.3]} 22. Qd3 {[%clk
0:01:45.5]} 22... e4 {[%clk 0:01:07.5]} 23. Qd4 {[%clk 0:01:44.1]} 23... Bc5
{[%clk 0:00:52]} 24. Qd1 {[%clk 0:01:43]} 24... Qe6 {[%clk 0:00:44.3]} 25. Ba4+
{[%clk 0:01:42.6]} 25... Kf8 {[%clk 0:00:41.4]} 26. Nf4 {[%clk 0:01:42.5]} 26...
Qe5 {[%clk 0:00:33.1]} 27. Qe2 {[%clk 0:01:38.4]} 27... Nf5 {[%clk 0:00:27.1]}
28. Qxa6 {[%clk 0:01:34.6]} 28... Rd8 {[%clk 0:00:17.9]} 29. Qa5 {[%clk
0:01:27.1]} 29... Be7 {[%clk 0:00:17.8]} 30. Nxf5 {[%clk 0:01:21.6]} 30... Qxf5
{[%clk 0:00:18.7]} 31. Rd1 {[%clk 0:01:15.4]} 31... Qg5 {[%clk 0:00:19.1]} 32.
g3 {[%clk 0:01:15.3]} 32... d4 {[%clk 0:00:19.4]} 33. Qb6 {[%clk 0:01:01.4]}
33... d3 {[%clk 0:00:17.2]} 34. Bc6 {[%clk 0:00:59.7]} 34... Qc5 {[%clk
0:00:16.8]} 35. Qxc5 {[%clk 0:00:56.6]} 35... Bxc5 {[%clk 0:00:17.7]} 36. Bxe4
{[%clk 0:00:56.2]} 36... d2 {[%clk 0:00:18.1]} 37. Bxh7 {[%clk 0:00:56]} 37...
Rg5 {[%clk 0:00:16.9]} 38. h4 {[%clk 0:00:55]} 38... Re5 {[%clk 0:00:16.8]} 39.
Nd3 {[%clk 0:00:52.7]} 39... Red5 {[%clk 0:00:14.4]} 40. Nf4 {[%clk 0:00:49.4]}
40... R5d6 {[%clk 0:00:11.7]} 41. Kf1 {[%clk 0:00:48.3]} 41... Ra6 {[%clk
0:00:09.8]} 42. Bb1 {[%clk 0:00:46.1]} 42... b3 {[%clk 0:00:08.6]} 43. axb3
{[%clk 0:00:39.5]} 43... Ra1 {[%clk 0:00:08.7]} 44. Ke2 {[%clk 0:00:39.7]} 44...
Bb4 {[%clk 0:00:09.2]} 45. Nd3 {[%clk 0:00:38.1]} 45... Ba5 {[%clk 0:00:04.7]}
46. b4 {[%clk 0:00:37.5]} 46... Bb6 {[%clk 0:00:02.6]} 47. h5 {[%clk 0:00:36.5]}
47... Rc8 {[%clk 0:00:02.9]} 48. g4 {[%clk 0:00:34.8]} 48... Kg7 {[%clk
0:00:01.5]} 49. g5 {[%clk 0:00:31.6]} 49... f6 {[%clk 0:00:01.9]} 50. gxf6+
{[%clk 0:00:31.1]} 50... Kxf6 {[%clk 0:00:02.8]} 51. Kxd2 {[%clk 0:00:24.4]}
51... Kg5 {[%clk 0:00:03.3]} 52. Rh1 {[%clk 0:00:20.5]} 52... Rd8 {[%clk
0:00:03.5]} 53. Ke2 {[%clk 0:00:20.5]} 53... Bc7 {[%clk 0:00:03.6]} 54. b5
{[%clk 0:00:20.3]} 54... Bb6 {[%clk 0:00:03.7]} 55. Rh3 {[%clk 0:00:18.5]} 55...
Ra7 {[%clk 0:00:04.4]} 56. Rg3+ {[%clk 0:00:18.7]} 56... Kh6 {[%clk 0:00:04.4]}
57. Nf4 {[%clk 0:00:19.2]} 57... Rad7 {[%clk 0:00:02.6]} 58. Rg6+ {[%clk
0:00:19.3]} 58... Kh7 {[%clk 0:00:01.6]} 59. Rxb6+ {[%clk 0:00:19.9]} 59... Kh8
{[%clk 0:00:01.4]} 60. Ng6+ {[%clk 0:00:19.7]} 60... Kg7 {[%clk 0:00:01.8]} 61.
Bf5 {[%clk 0:00:19.6]} 61... Rd2+ {[%clk 0:00:01.9]} 62. Kf3 {[%clk 0:00:20.2]}
62... Rf8 {[%clk 0:00:02.3]} 63. Rb7+ {[%clk 0:00:20.6]} 63... Kh6 {[%clk
0:00:02.7]} 64. e4 {[%clk 0:00:20.8]} 64... Kxh5 {[%clk 0:00:01.3]} 65. Rh7+
{[%clk 0:00:20.1]} 65... Kg5 {[%clk 0:00:01.7]} 66. Ke3 {[%clk 0:00:20.4]} 66...
Rfd8 {[%clk 0:00:01.1]} 67. f4+ {[%clk 0:00:20.9]} 1-0

[Event "Late-Titled-Tuesday-Blitz-September-05-2023"]
[Site "Chess.com"]
[Date "2023.09.05"]
[Round "8"]
[White "MikeSailer"]
[Black "tylityli"]
[Result "1-0"]
[WhiteElo "2193"]
[BlackElo "2305"]
[TimeControl "180+1"]
[EndTime "15:30:01 PDT"]
[Termination "MikeSailer won on time"]

1. d4 {[%clk 0:02:52.5]} 1... Nf6 {[%clk 0:02:59]} 2. Nc3 {[%clk 0:02:51.5]}
2... d5 {[%clk 0:02:58.8]} 3. Bf4 {[%clk 0:02:49.7]} 3... a6 {[%clk 0:02:58.2]}
4. e3 {[%clk 0:02:44.6]} 4... c5 {[%clk 0:02:58.1]} 5. Nf3 {[%clk 0:02:41.4]}
5... Nc6 {[%clk 0:02:57.5]} 6. dxc5 {[%clk 0:02:33.7]} 6... Qa5 {[%clk
0:02:55.6]} 7. Be2 {[%clk 0:02:13.6]} 7... Qxc5 {[%clk 0:02:54.9]} 8. O-O {[%clk
0:02:13.1]} 8... e6 {[%clk 0:02:48.7]} 9. Nd4 {[%clk 0:02:08]} 9... Be7 {[%clk
0:02:35.9]} 10. h3 {[%clk 0:01:45.9]} 10... O-O {[%clk 0:02:34]} 11. Nxc6 {[%clk
0:01:40.1]} 11... bxc6 {[%clk 0:02:32.2]} 12. Na4 {[%clk 0:01:40.7]} 12... Qa7
{[%clk 0:02:28]} 13. c4 {[%clk 0:01:40.8]} 13... c5 {[%clk 0:02:22.3]} 14. Bf3
{[%clk 0:01:34.6]} 14... Bb7 {[%clk 0:02:20.5]} 15. Qc2 {[%clk 0:01:30.6]} 15...
d4 {[%clk 0:02:07.1]} 16. Bxb7 {[%clk 0:01:29]} 16... Qxb7 {[%clk 0:02:07.4]}
17. exd4 {[%clk 0:01:29.6]} 17... cxd4 {[%clk 0:02:07.8]} 18. c5 {[%clk
0:01:20.8]} 18... Rac8 {[%clk 0:02:04.2]} 19. a3 {[%clk 0:01:03.2]} 19... Rfd8
{[%clk 0:01:34]} 20. b4 {[%clk 0:01:01.5]} 20... d3 {[%clk 0:01:33.9]} 21. Qc4
{[%clk 0:00:56.3]} 21... Qb5 {[%clk 0:01:27.3]} 22. Qxb5 {[%clk 0:00:52.7]}
22... axb5 {[%clk 0:01:28.2]} 23. Nb6 {[%clk 0:00:53.6]} 23... Nd5 {[%clk
0:01:22.3]} 24. Nxc8 {[%clk 0:00:40.9]} 24... Rxc8 {[%clk 0:01:19.7]} 25. Bd2
{[%clk 0:00:39]} 25... e5 {[%clk 0:01:15.6]} 26. a4 {[%clk 0:00:31.2]} 26...
bxa4 {[%clk 0:01:02.6]} 27. Rxa4 {[%clk 0:00:31.4]} 27... f5 {[%clk 0:01:03]}
28. Rfa1 {[%clk 0:00:23.2]} 28... Kf7 {[%clk 0:01:02.6]} 29. Ra8 {[%clk
0:00:22.5]} 29... Rc6 {[%clk 0:00:59.7]} 30. R1a6 {[%clk 0:00:20.6]} 30... Rc7
{[%clk 0:00:55.5]} 31. R8a7 {[%clk 0:00:20.6]} 31... Rc8 {[%clk 0:00:55]} 32.
Rd7 {[%clk 0:00:20.7]} 32... Nf6 {[%clk 0:00:50.6]} 33. Rxd3 {[%clk 0:00:20.9]}
33... Ne4 {[%clk 0:00:46.1]} 34. Rd7 {[%clk 0:00:15.6]} 34... Kf8 {[%clk
0:00:30.1]} 35. Raa7 {[%clk 0:00:13.2]} 35... Bf6 {[%clk 0:00:30]} 36. Be1
{[%clk 0:00:12.4]} 36... Kg8 {[%clk 0:00:22.1]} 37. Rdc7 {[%clk 0:00:12.3]}
37... Rb8 {[%clk 0:00:20.8]} 38. Rab7 {[%clk 0:00:10.6]} 38... Rd8 {[%clk
0:00:20.5]} 39. Rd7 {[%clk 0:00:10.8]} 39... Rc8 {[%clk 0:00:20.6]} 40. f3
{[%clk 0:00:09.6]} 40... Ng5 {[%clk 0:00:16.4]} 41. Bf2 {[%clk 0:00:08.9]} 41...
Ne6 {[%clk 0:00:16.3]} 42. Rd6 {[%clk 0:00:08.3]} 42... Nd8 {[%clk 0:00:14.2]}
43. Rbd7 {[%clk 0:00:07.6]} 43... Nf7 {[%clk 0:00:10.6]} 44. Rd5 {[%clk
0:00:07.3]} 44... e4 {[%clk 0:00:08.8]} 45. fxe4 {[%clk 0:00:07.6]} 45... fxe4
{[%clk 0:00:09.7]} 46. Bd4 {[%clk 0:00:07.1]} 46... Bd8 {[%clk 0:00:06.8]} 47.
b5 {[%clk 0:00:06.3]} 47... Rb8 {[%clk 0:00:06.4]} 48. b6 {[%clk 0:00:06.7]}
48... Kf8 {[%clk 0:00:07]} 49. b7 {[%clk 0:00:06.3]} 49... Ke8 {[%clk
0:00:06.7]} 50. c6 {[%clk 0:00:07.1]} 50... Ng5 {[%clk 0:00:02.9]} 51. Ba7
{[%clk 0:00:05.3]} 1-0